bitfinex/quotes_ETHUSD_20250623
["timestamp","ask_amount","ask_price","bid_price","bid_amount"]
[1750696958762,1.5144,2227.4,2226.3,1.5495]
[1750696959065,1.5144,2227.4,2225.8,14.32953455]
[1750696959066,1.5144,2227.4,2226.0,10.503]
[1750696959239,1.6262,2227.1,2225.8,4.49276664]
[1750696959438,1.6262,2227.1,2226.0,10.0]
[1750696959629,1.6262,2227.1,2226.1,1.5495]
[1750696960071,1.6262,2227.1,2226.7,4.49081699]
[1750696960275,1.6262,2227.1,2226.3,4.49174379]
[1750696960475,1.6262,2227.1,2225.6,22.1392]
[1750696960786,10.0,2227.8,2225.6,4.4930452]
[1750696960787,1.5343,2226.6,2225.6,4.4930452]
[1750696960987,1.5343,2226.6,2224.8,12.4422]
[1750696960988,10.0,2226.3,2224.4,4.49559431]
[1750696961289,14.32953455,2226.0,2224.8,4.49465592]
[1750696961586,11.6262,2225.5,2223.7,6.01848365]
[1750696961755,4.06,2225.4,2224.0,10.488]
[1750696961945,1.6262,2225.5,2224.6,4.49506558]
[1750696962151,1.6262,2225.5,2224.8,4.49469202]
[1750696962350,1.6262,2225.5,2224.5,10.488]
[1750696962591,1.6262,2225.5,2224.1,4.49618663]
[1750696962592,1.6262,2225.5,2224.2,10.0]
[1750696962934,14.32953455,2225.5,2224.4,4.49559431]
[1750696963127,3.05915346,2225.4,2223.8,10.488]
[1750696963280,3.05915346,2225.4,2224.4,4.49545472]
[1750696963476,3.05915346,2225.4,2224.0,4.49640287]
[1750696963783,1.6262,2225.4,2224.8,4.49467218]
[1750696964000,1.6262,2225.4,2224.4,4.49548353]
[1750696964194,14.32953455,2225.2,2224.0,4.49640287]
[1750696964420,11.6262,2225.4,2224.1,4.49608264]
[1750696964715,1.6262,2225.4,2223.9,14.49660506]
[1750696964915,1.6262,2225.4,2225.2,4.49395477]
[1750696965114,1.6262,2225.4,2224.6,14.9831778]
[1750696965417,1.6262,2225.4,2225.1,4.49406643]
[1750696965714,1.6262,2225.4,2224.9,4.49447391]
[1750696965916,1.6262,2225.4,2224.2,14.49584364]
[1750696966116,1.6262,2225.4,2224.8,4.49460576]
[1750696966419,1.6262,2225.4,2224.0,4.49635579]
[1750696966580,1.6262,2225.4,2224.6,4.49499562]
[1750696966786,1.6262,2225.4,2224.7,4.49488811]
[1750696967017,1.6262,2225.4,2225.0,4.49424723]
[1750696967395,1.6262,2225.4,2224.1,10.489]
[1750696967720,1.6262,2225.4,2223.9,28.82611629]
[1750696967721,1.6262,2225.4,2224.2,10.488]
[1750696967898,1.6262,2225.4,2224.4,4.49559431]
[1750696968224,1.6262,2225.4,2225.0,4.49427126]
[1750696968419,1.6262,2225.4,2224.7,4.49483533]
[1750696968622,1.6262,2225.4,2224.7,4.49487929]
[1750696968805,1.6262,2225.4,2224.3,14.9837542]
[1750696969120,1.5143,2225.2,2223.7,10.488]
[1750696969327,10.0,2225.1,2223.8,14.49680726]
[1750696969481,1.5143,2225.2,2224.7,4.49483936]
[1750696969685,1.5143,2225.2,2224.7,4.4948814]
[1750696970038,1.5143,2225.2,2223.8,0.44742819]
[1750696970327,15.84383455,2225.2,2224.2,4.49598973]
[1750696970491,1.5143,2225.0,2223.9,4.49651491]
[1750696970684,1.5143,2225.0,2223.6,4.95481867]
[1750696970889,1.5143,2225.0,2224.1,4.49619314]
[1750696971085,1.5143,2225.0,2224.0,4.49635454]
[1750696971334,10.5133,2224.7,2223.6,4.49711169]
[1750696971623,14.32953455,2224.4,2222.7,0.44275014]
[1750696971807,4.061,2224.3,2222.6,10.488]
[1750696972012,14.32953455,2224.0,2222.9,4.49857927]
[1750696972324,10.0,2223.9,2222.7,4.4990113]
[1750696972545,10.0,2223.5,2221.9,1.6103]
[1750696972723,2.43295345,2223.4,2221.9,1.6103]
[1750696972885,4.061,2223.6,2222.9,4.49845097]
[1750696973095,4.061,2223.6,2222.5,4.49933228]
[1750696973392,14.061,2223.7,2222.7,4.49892443]
[1750696973726,14.061,2223.7,2221.9,6.55275222]
[1750696973727,14.32953455,2223.3,2221.9,0.44180554]
[1750696973886,14.32953455,2223.3,2221.3,1.6103]
[1750696973887,14.32953455,2223.3,2222.5,4.49933006]
[1750696974082,1.43295346,2223.2,2221.8,10.488]
[1750696974281,0.6252,2223.5,2221.9,10.0]
[1750696974522,10.0,2223.3,2222.4,4.49957258]
[1750696974686,0.6252,2223.5,2221.9,4.50065259]
[1750696974687,0.6252,2223.5,2222.9,4.49852615]
[1750696974894,10.6252,2223.5,2222.5,4.49943563]
[1750696975153,0.6252,2223.5,2223.4,4.49761626]
[1750696975550,0.6252,2224.2,2222.3,5.04980918]
[1750696975737,0.6252,2224.2,2223.7,4.49691476]
[1750696976048,0.6252,2224.2,2223.0,4.49842555]
[1750696976217,0.6252,2224.2,2222.8,14.49879988]
[1750696976418,0.6252,2224.2,2222.9,10.49]
[1750696976614,0.6252,2224.2,2223.1,10.0]
[1750696976816,0.6252,2224.2,2223.2,4.49802087]
[1750696977139,0.6252,2224.2,2224.1,4.49620071]
[1750696977450,0.6252,2224.6,2224.4,4.49553947]
[1750696977649,0.6252,2224.6,2224.3,4.49570945]
[1750696977952,0.6252,2224.6,2223.3,0.55]
[1750696978119,0.6252,2224.6,2224.5,4.49539222]
[1750696978323,0.6252,2224.6,2223.5,10.0]
[1750696978539,0.6252,2224.6,2223.6,4.49721172]
[1750696978744,0.6252,2224.6,2223.5,10.0]
[1750696978933,0.6252,2224.6,2223.8,4.49670454]
[1750696979270,0.6252,2224.6,2223.7,4.49698646]
[1750696979440,0.6252,2224.6,2223.6,4.49719281]
[1750696979643,0.6252,2226.2,2224.6,1.6617]
[1750696979847,0.30995664,2226.1,2224.7,10.488]
[1750696980029,0.30995664,2226.1,2224.8,10.488]
[1750696980238,0.30995664,2226.1,2225.0,10.0]
[1750696980875,0.30995664,2226.1,2224.9,25.36753455]
[1750696980876,0.30995664,2226.1,2226.0,4.49236298]
[1750696981032,0.30995664,2226.1,2226.0,14.98036298]
[1750696981763,0.8071318,2228.1,2226.1,6.80236]
[1750696981968,0.8071318,2228.1,2226.0,4.93826726]
[1750696981969,0.30994656,2228.0,2227.9,4.4885318]
[1750696982129,0.30994656,2228.0,2227.2,10.0]
[1750696982322,0.30994656,2228.0,2227.7,4.48874515]
[1750696982525,0.30994656,2228.0,2227.7,4.48876193]
[1750696982769,0.1819318,2228.1,2227.8,4.48862431]
[1750696982955,0.1819318,2228.1,2228.0,4.48833034]
[1750696983152,0.1819318,2228.1,2227.8,4.48860286]
[1750696983153,0.1819318,2228.1,2227.8,10.484]
[1750696983331,0.1819318,2228.1,2227.1,11.6205]
[1750696983529,0.1819318,2228.1,2227.8,4.48860947]
[1750696983741,0.1819318,2228.1,2227.8,14.9727188]
[1750696983943,0.1819318,2228.1,2228.0,4.48833034]
[1750696984741,0.005,2228.7,2228.6,14.48712195]
[1750696984940,0.0317632,2229.2,2229.1,16.09841547]
[1750696985153,0.2204318,2230.3,2230.2,4.48390278]
[1750696985356,0.2204318,2230.3,2230.0,10.479]
[1750696985654,0.2204318,2230.3,2230.2,4.48390278]
[1750696986183,0.2204318,2230.3,2230.2,10.478]
[1750696986418,0.2204318,2230.3,2229.8,4.48453012]
[1750696986543,0.2204318,2230.3,2229.9,10.478]
[1750696986742,0.2204318,2230.3,2229.9,4.48443991]
[1750696987055,0.2204318,2230.3,2229.6,10.478]
[1750696987366,0.2204318,2230.3,2229.0,10.471]
[1750696987367,0.6252,2230.2,2229.0,10.471]
[1750696987546,14.32953455,2230.1,2229.0,10.471]
[1750696987743,14.32953455,2229.7,2228.4,4.93295001]
[1750696988078,10.0,2229.2,2228.1,10.471]
[1750696988279,10.0,2229.2,2228.2,0.37464438]
[1750696988487,14.32953455,2228.9,2228.2,0.37464438]
[1750696988689,10.0,2228.8,2228.2,0.37464438]
[1750696988885,14.32953455,2228.5,2228.2,0.37464438]
[1750696989048,0.6252,2228.3,2227.1,10.47]
[1750696989247,0.6252,2228.3,2227.2,0.37481259]
[1750696989481,0.6252,2228.3,2227.2,10.84481259]
[1750696989659,0.6252,2228.3,2227.3,10.0]
[1750696989849,6.109,2230.5,2227.7,10.0]
[1750696989850,0.6252,2229.0,2227.7,10.0]
[1750696990048,0.6252,2229.0,2228.2,4.48792747]
[1750696990357,0.6252,2229.0,2228.3,0.37462756]
[1750696990679,0.6252,2229.0,2228.6,4.48709493]
[1750696990848,14.32953455,2228.8,2228.3,0.37462756]
[1750696991270,11.68772,2229.0,2228.3,0.37462756]
[1750696991549,0.6252,2229.0,2228.3,0.37462756]
[1750696992079,10.0,2228.9,2228.3,0.37462756]
[1750696992394,0.6252,2229.0,2228.3,0.37462756]
[1750696992879,0.6252,2229.0,2228.4,4.48752468]
[1750696993082,10.467,2229.9,2228.4,4.48752468]
[1750696993083,0.5,2231.3,2228.5,0.37459394]
[1750696993269,0.45009575,2232.5,2228.5,0.37459394]
[1750696993270,18.30553455,2230.7,2228.7,10.0]
[1750696993581,10.0,2230.6,2228.9,4.48651801]
[1750696993895,14.32953455,2229.9,2228.7,0.37456033]
[1750696994099,25.76248801,2229.8,2228.7,0.37456033]
[1750696994302,10.785,2229.9,2229.0,4.48620857]
[1750696994810,10.785,2229.9,2228.7,15.32645252]
[1750696994811,10.0,2229.4,2228.7,0.37456033]
[1750696994969,14.32953455,2229.5,2228.7,0.37456033]
[1750696994970,14.32953455,2229.1,2228.7,0.37456033]
[1750696995302,13.976,2229.0,2228.7,0.37456033]
[1750696995625,13.976,2229.0,2227.6,4.48899522]
[1750696995905,10.0,2228.8,2227.3,10.464]
[1750696996119,14.32953455,2228.7,2227.5,4.48929795]
[1750696996268,24.32953455,2228.8,2227.7,4.48883688]
[1750696996480,10.0,2228.6,2227.3,10.464]
[1750696996664,20.783,2228.6,2226.9,10.462]
[1750696996897,20.783,2228.6,2226.4,4.49153231]
[1750696996898,24.32953455,2228.4,2226.4,4.49153231]
[1750696997122,24.32953455,2228.4,2227.0,4.49029188]
[1750696997263,24.32953455,2228.4,2226.6,4.4911214]
[1750696997469,3.976,2228.3,2226.8,4.49074905]
[1750696997670,10.0,2228.2,2227.0,4.49018792]
[1750696997921,10.0,2228.2,2226.4,0.7984]
[1750696997922,10.0,2228.0,2226.9,4.49053152]
[1750696998063,10.0,2228.0,2226.4,5.28991882]
[1750696998064,10.0,2228.0,2226.6,10.461]
[1750696998265,2.0783,2228.5,2226.8,4.49074905]
[1750696998501,10.0,2228.5,2226.9,14.49054739]
[1750696998674,10.0,2228.0,2226.4,0.7984]
[1750696998874,10.0,2228.5,2226.9,4.49044653]
[1750696999079,10.0,2227.8,2226.7,4.49089126]
[1750696999370,3.976,2227.9,2226.8,4.49073509]
[1750696999678,3.976,2227.9,2226.6,14.32953455]
[1750696999679,14.32953455,2227.8,2226.4,0.7984]
[1750697000009,10.0,2227.7,2226.6,4.49115242]
[1750697000249,10.783,2228.6,2226.6,10.0]
[1750697000502,10.783,2228.6,2227.2,10.0]
[1750697000866,14.759,2228.6,2227.2,10.0]
[1750697001069,12.90885346,2228.5,2227.5,4.48915246]
[1750697001399,3.976,2228.4,2227.5,4.48917108]
[1750697001706,3.976,2228.4,2227.1,10.46]
[1750697001876,4.34842004,2228.4,2227.1,14.95014403]
[1750697002204,4.34842004,2228.4,2227.5,4.48923586]
[1750697002403,0.37242004,2228.3,2227.1,10.46]
[1750697002619,0.37242004,2228.3,2227.4,4.48949011]
[1750697002815,0.37242004,2228.3,2227.5,4.48930333]
[1750697003103,0.37242004,2228.3,2227.6,4.48898656]
[1750697003304,0.37242004,2228.3,2226.8,10.0]
[1750697003507,14.32953455,2228.0,2226.7,14.94994463]
[1750697003709,3.976,2227.9,2226.8,4.49074905]
[1750697003880,3.976,2227.9,2227.0,4.49018177]
[1750697004215,2.47019546,2228.3,2226.8,0.40928564]
[1750697004420,10.0,2228.0,2226.7,10.91901599]
[1750697004627,3.976,2229.4,2227.4,0.8002]
[1750697004768,14.32953455,2229.2,2227.6,4.48913629]
[1750697004966,10.0,2229.1,2228.0,4.48818822]
[1750697005312,3.976,2229.3,2228.1,0.41132136]
[1750697005516,14.32953455,2229.9,2228.0,0.41144255]
[1750697005690,3.976,2229.8,2228.7,4.48679045]
[1750697006014,10.0,2229.7,2228.7,4.48682895]
[1750697006179,3.976,2229.8,2228.3,4.48772606]
[1750697006376,3.976,2229.8,2228.4,4.48752468]
[1750697006580,25.11453455,2230.0,2228.5,10.457]
[1750697006581,29.09053455,2230.0,2228.5,10.457]
[1750697006781,29.09053455,2230.0,2229.1,4.48602698]
[1750697006782,2.90905345,2229.8,2229.1,4.48602698]
[1750697007081,29.09053455,2230.0,2228.6,0.41133147]
[1750697007082,10.0,2229.9,2229.0,4.48628646]
[1750697007281,0.2204318,2230.3,2229.3,4.48570317]
[1750697007511,0.2204318,2230.3,2229.2,0.41133147]
[1750697007922,0.2204318,2230.3,2229.1,10.456]
[1750697008228,0.2204318,2230.3,2229.7,4.48476539]
[1750697008533,0.2204318,2230.3,2229.8,0.41290643]
[1750697008698,0.2204318,2230.3,2228.4,4.48738602]
[1750697008699,10.0,2230.1,2229.2,0.41288319]
[1750697008901,10.0,2229.7,2229.3,0.41288319]
[1750697009129,16.40895345,2230.0,2229.4,0.41577367]
[1750697009290,10.0,2229.6,2229.5,0.41577367]
[1750697009728,13.976,2229.6,2229.5,0.41599758]
[1750697010026,2.43295345,2230.0,2229.5,0.41599758]
[1750697010027,12.43295345,2230.0,2229.5,0.41599758]
[1750697010230,3.976,2230.1,2229.6,0.41592054]
[1750697010389,3.976,2230.1,2229.7,0.41592054]
[1750697010390,10.27064662,2230.0,2229.7,0.41592054]
[1750697010589,10.0,2230.0,2229.8,0.41592054]
[1750697010828,10.0,2230.0,2228.5,14.93912996]
[1750697011128,3.976,2230.1,2228.6,0.66607683]
[1750697011129,14.32953455,2229.5,2228.6,0.66607683]
[1750697011331,10.0,2229.4,2228.7,0.41593861]
[1750697011629,10.0,2229.4,2228.8,0.41593861]
[1750697011829,10.0,2229.4,2228.9,0.416956]
[1750697012025,10.0,2229.4,2228.6,0.25017076]
[1750697012026,13.962,2229.7,2229.0,0.416956]
[1750697012333,0.27128316,2229.6,2229.1,0.416956]
[1750697012624,10.0,2229.5,2229.2,0.416956]
[1750697012836,10.0,2229.5,2229.3,0.416956]
[1750697013012,18.36864522,2229.7,2229.4,0.416956]
[1750697013217,18.36864522,2229.7,2228.3,14.93865567]
[1750697013218,10.0,2229.7,2229.5,0.41696992]
[1750697013416,10.0,2229.7,2229.6,0.41696992]
[1750697013615,10.27126972,2229.7,2229.6,0.41696992]
[1750697013839,10.6684318,2230.3,2229.6,0.41696992]
[1750697013840,0.2204318,2230.3,2229.6,0.41696992]
[1750697014014,0.2713842,2230.2,2229.7,0.41696992]
[1750697014342,0.2713842,2230.2,2229.8,0.41696992]
[1750697014506,1.4453816,2230.2,2229.9,0.41696992]
[1750697014710,4.1824318,2230.3,2230.0,0.41696992]
[1750697015043,14.32953455,2230.1,2227.9,0.7581]
[1750697015244,10.0,2228.9,2228.0,0.41690368]
[1750697015428,10.0,2229.0,2228.1,0.41690368]
[1750697015740,25.72573455,2229.0,2228.2,0.41690368]
[1750697015940,0.27109551,2228.9,2228.3,0.41690368]
[1750697016117,10.0,2228.7,2228.4,0.41690368]
[1750697016317,10.0,2228.9,2228.5,0.41690368]
[1750697016518,10.0,2228.5,2228.0,0.41722002]
[1750697016730,4.2331097,2228.8,2227.5,4.48928387]
[1750697016731,24.32953455,2228.1,2227.5,4.48928387]
[1750697016930,3.962,2228.4,2227.6,0.41855303]
[1750697017245,10.0,2228.1,2227.7,0.4185493]
[1750697017449,10.0,2228.1,2227.8,0.4185493]
[1750697017655,10.0,2228.1,2227.9,0.4185493]
[1750697017852,10.444,2228.3,2227.0,0.25112958]
[1750697017853,10.0,2227.9,2227.0,0.25112958]
[1750697018142,10.0,2228.0,2227.1,0.4181227]
[1750697018344,10.0,2228.0,2227.2,0.4181227]
[1750697018546,3.962,2228.1,2226.8,5.71447982]
[1750697018547,10.0,2228.1,2227.3,4.90785919]
[1750697018705,10.0,2228.1,2227.4,4.90766207]
[1750697018910,14.32953455,2228.5,2226.8,5.71454404]
[1750697018911,3.962,2228.2,2227.5,0.4181227]
[1750697019141,3.962,2228.2,2227.6,0.4181227]
[1750697019303,3.962,2228.2,2227.7,0.41793796]
[1750697019304,0.27124165,2228.1,2227.7,0.41793796]
[1750697019507,0.27124165,2228.1,2227.8,0.41793796]
[1750697019717,10.0,2228.0,2227.9,0.41793796]
[1750697019954,10.27105886,2228.0,2226.9,4.49054739]
[1750697020248,10.0,2228.0,2227.0,0.41775722]
[1750697020406,10.0,2227.6,2227.1,0.41775722]
[1750697020605,10.0,2227.6,2227.2,0.41775722]
[1750697020818,0.27099487,2227.5,2227.3,0.41775722]
[1750697021019,10.0,2227.6,2226.0,0.8049]
[1750697021220,10.0,2227.1,2226.4,4.49143879]
[1750697021442,0.42332417,2228.1,2226.5,0.41771427]
[1750697021443,3.962,2227.4,2226.5,0.41771427]
[1750697021641,14.32953455,2227.8,2226.6,0.41771427]
[1750697021947,14.32953455,2227.8,2226.3,4.742352]
[1750697021948,10.0,2227.6,2226.8,4.49055083]
[1750697022110,13.962,2227.7,2226.9,0.41771427]
[1750697022315,10.0,2227.3,2227.0,0.41771427]
[1750697022669,18.29153455,2227.8,2227.1,0.41730774]
[1750697022824,10.0,2227.7,2227.2,0.41730774]
[1750697023021,0.27075116,2227.6,2227.3,0.41730774]
[1750697023221,0.27075116,2227.6,2226.6,0.2503754]
[1750697023454,12.82915346,2227.7,2225.9,24.93253224]
[1750697023455,10.0,2227.7,2227.2,4.48985074]
[1750697023615,25.11253455,2228.2,2227.1,4.49001587]
[1750697023809,10.27077109,2228.1,2227.3,4.48972593]
[1750697024015,0.27077109,2228.0,2227.2,4.48977879]
[1750697024216,10.783,2228.2,2226.9,0.7939]
[1750697024467,10.783,2228.2,2227.7,4.48881173]
[1750697024758,10.783,2228.2,2227.2,4.48988984]
[1750697024914,10.0,2228.0,2227.1,4.49005828]
[1750697025226,0.27091559,2227.9,2226.9,0.7939]
[1750697025418,10.0,2228.0,2227.1,4.48998129]
[1750697025615,3.963,2228.1,2227.5,4.4891458]
[1750697025935,3.963,2228.1,2226.9,5.28439729]
[1750697025936,18.29253455,2228.7,2227.9,4.48845527]
[1750697026136,0.27113937,2228.6,2227.3,4.48974094]
[1750697026365,0.27113937,2228.6,2227.7,0.7939]
[1750697026661,3.963,2228.7,2227.7,0.7939]
[1750697026884,10.66749919,2228.6,2227.6,4.48913629]
[1750697027012,10.66749919,2228.6,2227.5,4.48923041]
[1750697027013,10.3963,2228.6,2227.3,5.25653112]
[1750697027213,0.27124176,2228.5,2227.4,4.48941827]
[1750697027455,3.963,2229.1,2228.0,4.48813087]
[1750697027655,0.27137055,2229.0,2227.3,10.7668]
[1750697027947,0.27137055,2228.9,2227.7,10.0]
[1750697028150,0.27143625,2228.8,2227.5,10.0]
[1750697028351,29.07753455,2229.2,2228.2,4.48775848]
[1750697028550,10.785,2229.2,2227.5,0.55]
[1750697028713,10.785,2229.2,2228.3,4.48770475]
[1750697028913,10.785,2229.2,2228.2,0.7525]
[1750697029150,26.58933455,2229.2,2228.1,4.48801957]
[1750697029461,26.58933455,2229.2,2227.8,10.0]
[1750697029462,3.963,2229.1,2228.3,4.48759991]
[1750697029681,3.963,2229.1,2227.7,0.7525]
[1750697029682,14.32953455,2228.9,2227.7,0.7525]
[1750697029814,14.32953455,2228.9,2227.9,4.48852554]
[1750697030166,14.32953455,2228.9,2227.8,4.48873327]
[1750697030459,10.0,2229.1,2228.1,4.48809444]
[1750697030664,10.785,2229.2,2228.6,4.48696359]
[1750697030969,0.23407876,2230.2,2229.1,4.4860491]
[1750697030970,3.963,2229.7,2229.1,4.4860491]
[1750697031126,3.963,2229.7,2229.3,4.48560496]
[1750697031330,3.963,2229.7,2228.7,4.48692062]
[1750697031652,10.0,2230.0,2228.5,0.7531]
[1750697031955,3.963,2230.1,2229.1,4.48607619]
[1750697032249,10.0,2230.0,2228.7,4.48692062]
[1750697032449,10.0,2230.0,2228.8,4.48671931]
[1750697032649,10.0,2230.0,2228.8,4.48668285]
[1750697032848,18.29153455,2230.1,2228.5,1.20709202]
[1750697033156,10.0,2229.6,2228.6,4.48701651]
[1750697033313,16.39495345,2229.6,2228.5,5.6943237]
[1750697033649,16.39495345,2229.6,2228.5,0.45399202]
[1750697033833,16.39495345,2229.6,2228.0,0.7675]
[1750697034015,16.39495345,2229.6,2228.4,4.48741142]
[1750697034216,16.39495345,2229.6,2228.0,0.7675]
[1750697034412,10.0,2229.2,2228.0,1.20985581]
[1750697034748,3.0724488,2229.5,2227.6,0.8016]
[1750697034749,10.0,2228.8,2227.6,0.8016]
[1750697034950,10.0,2228.8,2227.6,1.17634529]
[1750697035118,3.962,2228.7,2227.6,0.37474529]
[1750697035451,14.32953455,2228.5,2227.6,0.37474529]
[1750697035649,12.43295345,2228.4,2227.6,0.37474529]
[1750697036156,14.32953455,2228.1,2227.6,0.37474529]
[1750697036851,3.962,2228.2,2227.6,0.37474529]
[1750697037056,14.32953455,2228.0,2227.6,0.37474529]
[1750697037553,14.32953455,2227.9,2226.6,4.49115242]
[1750697037889,16.15868801,2227.9,2226.7,0.37489675]
[1750697038389,14.32953455,2227.5,2226.7,0.37489675]
[1750697038687,3.962,2227.4,2226.7,0.37489675]
[1750697038981,14.32953455,2227.0,2226.7,0.37489675]
[1750697039135,15.76248801,2227.0,2226.7,0.37489675]
[1750697039532,3.962,2226.9,2226.7,0.37489675]
[1750697039765,3.962,2226.8,2226.7,0.37489675]
[1750697040270,13.962,2226.8,2226.7,0.37489675]
[1750697040468,14.32953455,2226.9,2226.7,0.37489675]
[1750697040668,3.962,2226.8,2226.1,5.2447855]
[1750697040855,10.0,2227.1,2226.1,5.24484863]
[1750697041169,14.32953455,2226.9,2225.8,4.49275099]
[1750697041334,10.0,2227.0,2225.4,0.44991289]
[1750697041530,3.935,2227.0,2225.6,8.98634076]
[1750697041792,3.935,2228.1,2226.4,10.0]
[1750697041994,2.43295345,2228.4,2226.9,10.0]
[1750697042288,25.11553455,2229.6,2227.5,10.0]
[1750697042493,6.44655346,2229.5,2227.8,4.48861758]
[1750697042773,14.32953455,2229.3,2227.7,0.7701]
[1750697042985,2.51155346,2229.5,2227.9,10.0]
[1750697043189,10.786,2229.6,2228.2,10.0]
[1750697043384,10.0,2229.5,2228.1,0.7857]
[1750697043551,21.199,2229.6,2228.4,4.48733466]
[1750697043871,14.721,2229.6,2228.7,4.48675442]
[1750697044085,10.786,2229.6,2228.3,10.0]
[1750697044374,10.0,2229.5,2228.1,0.7857]
[1750697044539,10.0,2229.1,2228.0,4.48819893]
[1750697044871,3.935,2229.0,2227.8,4.48873327]
[1750697045048,10.0,2229.3,2228.2,4.48783234]
[1750697045243,11.8646,2229.6,2228.3,4.48764388]
[1750697045462,14.32953455,2229.3,2227.7,0.7533]
[1750697045662,10.0,2228.8,2227.8,4.4887032]
[1750697045850,10.0,2228.8,2227.5,4.94899184]
[1750697046049,10.0,2228.8,2227.8,4.48863948]
[1750697046293,10.0,2228.8,2227.7,4.488825]
[1750697046491,2.43295345,2228.7,2227.8,4.48871376]
[1750697046791,2.43295345,2228.7,2227.3,0.8015]
[1750697046792,10.0,2228.6,2227.4,4.48944299]
[1750697046966,10.0,2228.2,2227.0,0.44111964]
[1750697047164,10.0,2228.2,2226.9,4.49039315]
[1750697047488,14.32953455,2227.9,2226.9,0.37486308]
[1750697047690,10.0,2227.7,2226.9,0.37486308]
[1750697047894,14.32953455,2227.1,2225.7,0.8234]
[1750697048193,14.32953455,2227.1,2225.1,4.49398614]
[1750697048194,10.0,2226.6,2225.5,0.44430965]
[1750697048494,3.935,2226.5,2225.1,0.8234]
[1750697048790,3.935,2226.5,2225.4,4.49343631]
[1750697048991,10.0,2226.2,2225.1,0.8234]
[1750697049296,2.43295345,2226.1,2225.2,4.49387832]
[1750697049469,6.36795345,2226.1,2225.1,4.49416092]
[1750697049672,6.36795345,2226.1,2225.2,4.49397806]
[1750697049987,10.0,2226.2,2224.6,0.7938]
[1750697050878,10.0,2226.0,2224.6,0.7938]
[1750697051074,3.936,2225.9,2225.1,4.49404207]
[1750697051313,3.936,2225.9,2225.0,4.49424868]
[1750697051696,3.936,2225.9,2225.2,4.49383689]
[1750697051900,1.3935,2227.6,2224.7,0.55]
[1750697052113,14.32953455,2227.5,2225.4,10.0]
[1750697052279,14.32953455,2226.7,2225.0,0.8012]
[1750697052479,3.936,2226.9,2225.7,4.49289498]
[1750697052688,18.26553455,2226.9,2225.7,4.49289498]
[1750697052915,3.937,2226.8,2225.4,4.49357418]
[1750697053102,10.3937,2226.7,2225.0,5.29540112]
[1750697053303,10.3937,2226.7,2225.4,4.49338314]
[1750697053505,10.0,2226.3,2225.0,0.8012]
[1750697053698,10.0,2226.3,2225.2,4.49387657]
[1750697053892,10.0,2226.3,2225.1,4.49415132]
[1750697054111,10.0,2226.1,2224.7,5.31317651]
[1750697054643,10.0,2226.5,2224.9,4.49458402]
[1750697054851,10.0,2226.5,2225.6,4.49316634]
[1750697055001,10.0,2226.2,2224.7,0.8182]
[1750697055197,10.0,2226.2,2224.7,5.31304588]
[1750697055198,2.43295345,2226.1,2224.7,5.31304588]
[1750697055508,10.0,2225.8,2224.6,0.43883396]
[1750697055706,3.937,2225.7,2224.4,3.59605302]
[1750697055930,2.43295345,2226.1,2224.4,3.59605302]
[1750697055931,2.43295345,2226.1,2224.4,18.09146513]
[1750697056094,2.43295345,2226.1,2225.1,4.4940594]
[1750697056095,10.0,2225.9,2225.1,4.4940594]
[1750697056294,1.63699535,2225.9,2225.2,4.49386796]
[1750697056612,10.0,2226.0,2225.0,4.49431058]
[1750697056932,10.0,2226.0,2225.0,4.49437273]
[1750697057153,10.0,2226.0,2225.2,4.49388058]
[1750697057451,10.0,2226.0,2225.0,4.494352]
[1750697057840,10.0,2226.0,2224.9,4.49447908]
[1750697058042,10.0,2226.0,2225.2,4.493857]
[1750697058251,10.0,2226.0,2225.2,4.4938277]
[1750697058419,10.0,2226.0,2225.1,4.49406742]
[1750697058614,10.0,2226.0,2225.1,4.49408624]
[1750697058817,10.0,2226.0,2225.2,4.49395974]
[1750697059155,10.0,2226.0,2225.2,4.49378854]
[1750697059303,11.63699535,2226.0,2225.2,4.49382519]
[1750697059504,10.0,2226.0,2225.3,4.4936929]
[1750697059807,10.0,2226.0,2225.1,4.49415822]
[1750697060032,10.0,2226.0,2224.7,4.49498808]
[1750697060228,10.0,2226.0,2224.8,4.49478604]
[1750697060535,10.0,2226.0,2225.3,4.49358532]
[1750697060737,11.3937,2226.0,2225.2,4.49384205]
[1750697061035,11.3937,2226.0,2225.3,4.49369498]
[1750697061036,10.0,2226.0,2225.3,4.49369498]
[1750697061235,10.0,2226.0,2225.2,4.49386041]
[1750697061601,10.0,2226.0,2224.7,4.49490384]
[1750697061805,10.0,2226.0,2225.0,4.49426061]
[1750697062000,10.0,2226.0,2225.2,4.49384614]
[1750697062207,10.0,2226.0,2225.4,4.49354027]
[1750697062561,10.0,2226.0,2225.4,4.493511]
[1750697062707,3.937,2226.1,2225.6,4.49304349]
[1750697062922,3.937,2226.1,2225.5,4.49326663]
[1750697063107,3.937,2226.1,2225.4,4.49348865]
[1750697063332,5.3307,2226.1,2225.1,4.49406746]
[1750697063604,5.3307,2226.1,2225.2,4.49395899]
[1750697063810,5.3307,2226.1,2224.8,4.49478604]
[1750697064004,5.3307,2226.1,2225.2,4.49383854]
[1750697064303,5.3307,2226.1,2224.8,10.382]
[1750697064504,0.53307,2226.0,2224.8,10.382]
[1750697064705,0.53307,2226.0,2224.6,0.45768154]
[1750697064706,10.0,2226.0,2224.6,0.45768154]
[1750697064923,10.38,2225.9,2224.7,4.49491016]
[1750697065124,10.38,2225.9,2224.6,4.49510585]
[1750697067716,10.0,2224.3,2223.7,0.0033]
[1750697069375,10.0,2224.9,2223.7,0.0033]
[1750697069577,14.32953455,2225.0,2223.7,0.0033]
[1750697069735,10.0,2224.7,2223.8,4.49680726]
[1750697070070,10.0,2224.7,2224.0,4.49633018]
[1750697070274,10.0,2224.7,2223.7,0.0033]
[1750697070957,14.32953455,2224.5,2223.7,0.0033]
[1750697071155,10.0,2224.7,2223.7,0.0033]